fUST/lending_fUST_20241217
["ID","MTS","AMOUNT","RATE_DAILY","PERIOD"]
[345683608,1734424247741,-500.0,0.00024931,6]
[345683609,1734424247750,-500.0,0.00024931,6]
[345683610,1734424247758,-500.0,0.00024931,6]
[345683611,1734424247767,-500.48862691,0.00024931,6]
[345683612,1734424247776,-500.0,0.00024931,6]
[345683613,1734424247785,-500.0,0.00024931,6]
[345683614,1734424247794,-200.0,0.00024931,6]
[345683615,1734424247803,-500.0,0.00024931,6]
[345683617,1734424247812,-500.0,0.00024931,6]
[345683619,1734424247822,-879.48,0.00024931,6]
[345683620,1734424247831,-500.0,0.00024931,6]
[345683623,1734424247840,-500.0,0.00024931,6]
[345683624,1734424247849,-500.0,0.00024931,6]
[345683626,1734424247859,-500.0,0.00024931,6]
[345683628,1734424247868,-541.94682951,0.00024931,6]
[345683630,1734424247877,-500.0,0.00024931,6]
[345683632,1734424247885,-500.0,0.00024931,6]
[345683634,1734424247897,-500.0,0.00024931,6]
[345683637,1734424247906,-500.0,0.00024931,6]
[345683639,1734424247915,-500.0,0.00024931,6]
[345683641,1734424247924,-500.0,0.00024931,6]
[345683642,1734424247933,-500.0,0.00024931,6]
[345683644,1734424247942,-222.07653011,0.00024931,6]
[345683646,1734424247951,-500.0,0.00024931,6]
[345683648,1734424247960,-500.0,0.00024931,6]
[345683650,1734424247970,-500.0,0.00024931,6]
[345683653,1734424247980,-500.0,0.00024931,6]
[345683655,1734424247990,-500.0,0.00024931,6]
[345683657,1734424247999,-500.0,0.00024931,6]
[345683659,1734424248009,-500.0,0.00024931,6]
[345683661,1734424248018,-504.00921282,0.00024931,6]
[345683663,1734424248028,-500.0,0.00024931,6]
[345683665,1734424248037,-500.0,0.00024931,6]
[345683667,1734424248046,-500.0,0.00024931,6]
[345683669,1734424248056,-508.48030713,0.00024931,6]
[345683671,1734424248065,-1214.35,0.00024931,6]
[345683672,1734424248074,-500.0,0.00024931,6]
[345683674,1734424248084,-500.0,0.00024931,6]
[345683677,1734424248094,-646.76779218,0.00024931,6]
[345683678,1734424248103,-500.0,0.00024931,6]
[345683680,1734424248113,-500.0,0.00024931,6]
[345683682,1734424248122,-500.0,0.00024931,6]
[345683685,1734424248132,-505.67373488,0.00024931,6]
[345683687,1734424248144,-500.0,0.00024931,6]
[345683688,1734424248153,-500.0,0.00024931,6]
[345683690,1734424248163,-500.0,0.00024931,6]
[345683692,1734424248172,-500.0,0.00024931,6]
[345683695,1734424248182,-500.0,0.00024931,6]
[345683697,1734424248191,-500.0,0.00024931,6]
[345683699,1734424248201,-370.82969745,0.00024931,6]
[345683700,1734424248211,-500.0,0.00024931,6]
[345683703,1734424248221,-504.73735925,0.00024931,6]
[345683705,1734424248231,-500.0,0.00024931,6]
[345683706,1734424248240,-794.02,0.00024931,6]
[345683708,1734424248254,-500.0,0.00024931,6]
[345683711,1734424248264,-500.0,0.00024931,6]
[345683712,1734424248274,-500.0,0.00024931,6]
[345683715,1734424248283,-500.0,0.00024931,6]
[345683716,1734424248296,-503.9060504,0.00024931,6]
[345683718,1734424248305,-500.0,0.00024931,6]
[345683721,1734424248315,-500.0,0.00024931,6]
[345683723,1734424248327,-711.23,0.00024931,6]
[345683725,1734424248337,-500.0,0.00024931,6]
[345683726,1734424248346,-500.0,0.00024931,2]
[345683729,1734424248356,-500.0,0.00024931,6]
[345683731,1734424248365,-500.0,0.00024931,6]
[345683733,1734424248375,-500.0,0.00024931,6]
[345683735,1734424248384,-500.0,0.00024931,6]
[345683737,1734424248398,-500.0,0.00024931,6]
[345683739,1734424248412,-191.31895204,0.00024931,6]
[345683741,1734424248422,-500.0,0.00024931,6]
[345683743,1734424248431,-500.0,0.00024931,6]
[345683745,1734424248441,-844.97,0.00024931,6]
[345683747,1734424248452,-500.0,0.00024931,6]
[345683749,1734424248462,-190.91262373,0.00024931,6]
[345683751,1734424248471,-500.0,0.00024931,6]
[345683753,1734424248481,-175.46140931,0.00024931,6]
[345683755,1734424248490,-500.84827949,0.00024931,6]
[345683757,1734424248500,-500.0,0.00024931,6]
[345683759,1734424248509,-500.0,0.00024931,6]
[345683761,1734424248518,-500.0,0.00024931,6]
[345683763,1734424248528,-500.0,0.00024931,6]
[345683765,1734424248538,-466.93814112,0.00024931,6]
[345683767,1734424248548,-500.0,0.00024931,6]
[345683769,1734424248557,-500.0,0.00024931,6]
[345683771,1734424248567,-500.0,0.00024931,6]
[345683773,1734424248577,-788.73,0.00024931,6]
[345683775,1734424248586,-502.68417007,0.00024931,6]
[345683777,1734424248596,-500.0,0.00024931,6]
[345683779,1734424248606,-500.0,0.00024931,6]
[345683781,1734424248615,-500.0,0.00024931,6]
[345683783,1734424248625,-500.0,0.00024931,6]
[345683785,1734424248634,-627.92,0.00024931,6]
[345683787,1734424248643,-500.0,0.00024931,6]
[345683789,1734424248652,-500.0,0.00024931,6]
[345683791,1734424248661,-910.29,0.00024931,6]
[345683793,1734424248671,-500.0,0.00024931,6]
[345683795,1734424248681,-500.0,0.00024931,6]
[345683797,1734424248690,-774.98,0.00024931,6]
[345683799,1734424248700,-500.0,0.00024931,6]
[345683801,1734424248710,-500.0,0.00024931,6]
[345683803,1734424248719,-500.0,0.00024931,6]
[345683805,1734424248728,-500.0,0.00024931,6]
[345683807,1734424248738,-500.0,0.00024931,6]
[345683809,1734424248747,-209.57373758,0.00024931,6]
[345683811,1734424248757,-515.87287015,0.00024931,6]
[345683813,1734424248767,-500.0,0.00024931,6]
[345683815,1734424248778,-500.0,0.00024931,6]
[345683817,1734424248790,-1553.26,0.00024931,6]
[345683819,1734424248799,-500.0,0.00024931,6]
[345683821,1734424248809,-500.0,0.00024931,6]
[345683823,1734424248819,-500.0,0.00024931,6]
[345683825,1734424248829,-500.0,0.00024931,6]
[345683828,1734424248839,-500.0,0.00024931,2]
[345683830,1734424248848,-500.0,0.00024931,6]
[345683831,1734424248857,-500.0,0.00024931,6]
[345683834,1734424248867,-500.0,0.00024931,6]
[345683836,1734424248876,-567.41525138,0.00024931,6]
[345683837,1734424248885,-500.0,0.00024931,6]
[345683839,1734424248904,-604.52,0.00024931,6]
[345683841,1734424248914,-987.23,0.00024931,6]
[345683844,1734424248927,-780.46,0.00024931,6]
[345683846,1734424248936,-270.94522482,0.00024931,6]
[345683848,1734424248946,-718.59,0.00024931,6]
[345683850,1734424248957,-500.0,0.00024931,6]
[345683852,1734424248967,-500.0,0.00024931,6]
[345683854,1734424248976,-507.43266559,0.00024931,6]
[345683856,1734424248987,-500.0,0.00024931,6]
[345683858,1734424248997,-500.0,0.00024931,6]
[345683860,1734424249008,-500.0,0.00024931,6]
[345683862,1734424249017,-500.0,0.00024931,6]
[345683864,1734424249027,-500.0,0.00024931,6]
[345683866,1734424249036,-500.0,0.00024931,6]
[345683868,1734424249046,-500.0,0.00024931,6]
[345683870,1734424249055,-1293.26,0.00024931,6]
[345683872,1734424249065,-500.0,0.00024931,6]
[345683874,1734424249074,-513.00852133,0.00024931,6]
[345683876,1734424249084,-500.0,0.00024931,6]
[345683878,1734424249093,-1910.85,0.00024931,6]
[345683879,1734424249103,-512.84542246,0.00024931,6]
[345683881,1734424249113,-500.0,0.00024931,6]
[345683884,1734424249122,-547.30770471,0.00024931,6]
[345683885,1734424249131,-500.0,0.00024931,6]
[345683888,1734424249141,-2573.33,0.00024931,6]
[345683889,1734424249151,-500.0,0.00024931,6]
[345683891,1734424249160,-500.0,0.00024931,6]
[345683893,1734424249169,-591.97,0.00024931,6]
[345683895,1734424249179,-500.0,0.00024931,6]
[345683897,1734424249189,-2286.48,0.00024931,6]
[345683899,1734424249198,-500.0,0.00024931,6]
[345683901,1734424249208,-559.83960999,0.00024931,6]
[345683903,1734424249217,-500.0,0.00024931,6]
[345683906,1734424249227,-500.0,0.00024931,6]
[345683907,1734424249236,-500.0,0.00024931,6]
[345683909,1734424249247,-500.0,0.00024931,6]
[345683912,1734424249259,-500.0,0.00024931,6]
[345683914,1734424249268,-500.0,0.00024931,6]
[345683915,1734424249278,-526.69,0.00024931,6]
[345683917,1734424249287,-500.0,0.00024931,6]
[345683920,1734424249298,-903.29,0.00024931,6]
[345683921,1734424249308,-151.0,0.00024931,7]
[345683923,1734424249318,-500.0,0.00024931,6]
[345683925,1734424249329,-151.0,0.00024931,7]
[345683927,1734424249340,-500.0,0.00024931,6]
[345683929,1734424249350,-500.0,0.00024931,6]
[345683932,1734424249360,-1649.3,0.00024931,2]
[345683934,1734424249370,-500.0,0.00024931,6]
[345683936,1734424249379,-500.0,0.00024931,6]
[345683937,1734424249388,-500.0,0.00024931,6]
[345683940,1734424249397,-500.0,0.00024931,6]
[345683942,1734424249407,-712.81,0.00024931,6]
[345683943,1734424249418,-501.21310213,0.00024931,6]
[345683945,1734424249427,-508.91497905,0.00024931,6]
[345683947,1734424249436,-500.0,0.00024931,6]
[345683950,1734424249446,-237.44499347,0.00024931,6]
[345683952,1734424249455,-500.0,0.00024931,6]
[345683953,1734424249464,-500.0,0.00024931,6]
[345683956,1734424249473,-500.0,0.00024931,6]
[345683958,1734424249482,-286.43,0.00024931,6]
[345683960,1734424249491,-500.0,0.00024931,6]
[345683961,1734424249500,-500.0,0.00024931,6]
[345683963,1734424249510,-500.0,0.00024931,6]
[345683965,1734424249520,-500.0,0.00024931,6]
[345683967,1734424249529,-500.0,0.00024931,6]
[345683969,1734424249538,-521.49,0.00024931,6]
[345683971,1734424249547,-500.0,0.00024931,6]
[345683973,1734424249556,-500.0,0.00024931,6]
[345683975,1734424249565,-677.86,0.00024931,6]
[345683977,1734424249575,-1715.94,0.00024931,6]
[345683979,1734424249584,-545.7,0.00024931,6]
[345683981,1734424249593,-500.0,0.00024931,6]
[345683983,1734424249602,-500.0,0.00024931,6]
[345683985,1734424249612,-500.0,0.00024931,6]
[345683987,1734424249621,-500.0,0.00024931,6]
[345683989,1734424249630,-500.0,0.00024931,6]
[345683991,1734424249641,-500.0,0.00024931,6]
[345683993,1734424249654,-517.11,0.00024931,6]
[345683995,1734424249663,-3107.62,0.00024931,6]
[345683997,1734424249672,-500.0,0.00024931,6]
[345683999,1734424249682,-500.0,0.00024931,6]
[345684001,1734424249691,-500.0,0.00024931,6]
[345684003,1734424249700,-500.0,0.00024931,6]
[345684005,1734424249709,-500.0,0.00024931,6]
[345684007,1734424249718,-500.0,0.00024931,6]
[345684009,1734424249727,-513.18577275,0.00024931,6]
[345684011,1734424249737,-500.0,0.00024931,6]
[345684013,1734424249746,-500.0,0.00024931,6]
[345684015,1734424249755,-500.0,0.00024931,6]
[345684017,1734424249764,-500.0,0.00024931,6]
[345684019,1734424249773,-1887.89,0.00024931,6]
[345684021,1734424249782,-930.43,0.00024931,6]
[345684023,1734424249791,-500.0,0.00024931,6]
[345684026,1734424249808,-500.0,0.00024931,6]
[345684028,1734424249817,-1000.0,0.00024931,2]
[345684030,1734424249827,-500.0,0.00024931,6]
[345684031,1734424249836,-500.0,0.00024931,6]
[345684032,1734424249846,-500.0,0.00024931,6]
[345684033,1734424249855,-2642.26,0.00024931,6]
[345684034,1734424249864,-421.5626448,0.00024931,6]
[345684035,1734424249874,-500.0,0.00024931,6]
[345684036,1734424249883,-870.14,0.00024931,6]
[345684037,1734424249892,-500.0,0.00024931,6]
[345684038,1734424249901,-510.41841302,0.00024931,6]
[345684039,1734424249911,-1026.18,0.00024931,6]
[345684040,1734424249920,-500.0,0.00024931,6]
[345684041,1734424249929,-648.52,0.00024931,6]
[345684043,1734424249938,-500.0,0.00024931,6]
[345684045,1734424249947,-649.44,0.00024931,2]
[345684047,1734424249957,-500.0,0.00024931,6]
[345684049,1734424249966,-500.0,0.00024931,6]
[345684051,1734424249975,-500.0,0.00024931,6]
[345684054,1734424249984,-500.0,0.00024931,6]
[345684056,1734424249993,-500.0,0.00024931,6]
[345684057,1734424250002,-500.0,0.00024931,6]
[345684060,1734424250011,-6832.57,0.00024931,6]
[345684062,1734424250020,-2768.81,0.00024931,6]
[345684064,1734424250029,-500.0,0.00024931,6]
[345684066,1734424250039,-500.0,0.00024931,6]
[345684067,1734424250048,-500.0,0.00024931,6]
[345684069,1734424250057,-1817.43,0.00024931,6]
[345684072,1734424250066,-500.0,0.00024931,6]
[345684073,1734424250076,-500.0,0.00024931,6]
[345684075,1734424250086,-7526.42,0.00024931,6]
[345684077,1734424250095,-500.0,0.00024931,6]
[345684079,1734424250104,-500.0,0.00024931,6]
[345684081,1734424250114,-500.0,0.00024931,6]
[345684083,1734424250123,-794.02,0.00024931,6]
[345684085,1734424250133,-500.0,0.00024931,6]
[345684087,1734424250142,-6481.57,0.00024931,6]
[345684089,1734424250152,-10373.72,0.00024931,6]
[345684091,1734424250161,-500.0,0.00024931,6]
[345684093,1734424250170,-500.0,0.00024931,6]
[345684095,1734424250179,-1239.75,0.00024931,6]
[345684097,1734424250189,-500.0,0.00024931,6]
[345684099,1734424250198,-1765.9,0.00024931,6]
[345684101,1734424250208,-1201.5,0.00024931,6]
[345684103,1734424250217,-783.27,0.00024931,6]
[345684105,1734424250226,-3000.0,0.00024931,30]
[345684107,1734424250235,-500.0,0.00024931,6]
[345684109,1734424250246,-1019.66,0.00024931,6]
[345684111,1734424250255,-534.42,0.00024931,6]
[345684113,1734424250264,-1653.2,0.00024931,6]
[345684115,1734424250274,-1412.43,0.00024931,6]
[345684118,1734424250284,-577.15784387,0.00024931,6]
[345684120,1734424250293,-500.0,0.00024931,6]
[345684122,1734424250303,-500.0,0.00024931,6]
[345684124,1734424250312,-1778.41,0.00024931,5]
[345684126,1734424250322,-500.0,0.00024931,6]
[345684128,1734424250331,-500.0,0.00024931,6]
[345684130,1734424250340,-500.0,0.00024931,6]
[345684132,1734424250349,-3387.78,0.00024931,6]
[345684134,1734424250359,-500.0,0.00024931,6]
[345684136,1734424250369,-1002.59,0.00024931,6]
[345684138,1734424250378,-1704.13,0.00024931,6]
[345684140,1734424250388,-330.21893036,0.00024931,6]
[345684142,1734424250397,-500.0,0.00024931,6]
[345684144,1734424250407,-500.0,0.00024931,6]
[345684146,1734424250417,-500.0,0.00024931,6]
[345684148,1734424250426,-502.5824614,0.00024931,6]
[345684150,1734424250436,-505.19010218,0.00024931,6]
[345684152,1734424250444,-500.0,0.00024931,6]
[345684153,1734424250454,-506.15742995,0.00024931,6]
[345684155,1734424250463,-500.0,0.00024931,6]
[345684157,1734424250473,-500.0,0.00024931,6]
[345684159,1734424250483,-500.0,0.00024931,6]
[345684162,1734424250493,-33732.24,0.00024931,6]
[345684164,1734424250503,-3709.48,0.00024931,6]
[345684166,1734424250514,-500.0,0.00024931,6]
[345684168,1734424250523,-500.0,0.00024931,6]
[345684170,1734424250534,-160.48352591,0.00024931,6]
[345684172,1734424250543,-502.88308634,0.00024931,6]
[345684174,1734424250553,-500.0,0.00024931,6]
[345684176,1734424250563,-500.0,0.00024931,6]
[345684178,1734424250572,-500.0,0.00024931,6]
[345684180,1734424250582,-388.12106262,0.00024931,6]
[345684182,1734424250592,-1705.57,0.00024931,6]
[345684184,1734424250601,-500.0,0.00024931,6]
[345684186,1734424250611,-500.0,0.00024931,6]
[345684187,1734424250620,-508.84354964,0.00024931,6]
[345684189,1734424250629,-500.0,0.00024931,6]
[345684191,1734424250638,-507.33262878,0.00024931,6]
[345684193,1734424250657,-430.03621424,0.00024931,6]
[345684195,1734424250667,-1836.6,0.00024931,6]
[345684197,1734424250677,-704.62,0.00024931,6]
[345684199,1734424250686,-500.0,0.00024931,6]
[345684201,1734424250697,-500.0,0.00024931,6]
[345684203,1734424250707,-979.48,0.00024931,6]
[345684205,1734424250717,-500.0,0.00024931,6]
[345684207,1734424250727,-500.0,0.00024931,6]
[345684209,1734424250736,-500.0,0.00024931,6]
[345684211,1734424250745,-500.0,0.00024931,6]
[345684213,1734424250754,-500.0,0.00024931,6]
[345684215,1734424250764,-594.35513115,0.00024931,6]
[345684217,1734424250773,-4330.72,0.00024931,6]
[345684219,1734424250783,-377.89581453,0.00024931,6]
[345684221,1734424250792,-505.28700191,0.00024931,6]
[345684223,1734424250801,-500.0,0.00024931,6]
[345684225,1734424250811,-500.0,0.00024931,6]
[345684227,1734424250821,-610.85,0.00024931,6]
[345684229,1734424250830,-500.0,0.00024931,6]
[345684231,1734424250839,-500.0,0.00024931,6]
[345684233,1734424250848,-500.0,0.00024931,6]
[345684235,1734424250858,-500.0,0.00024931,6]
[345684237,1734424250868,-2529.02,0.00024931,6]
[345684239,1734424250878,-1079.08,0.00024931,6]
[345684241,1734424250887,-500.0,0.00024931,6]
[345684243,1734424250900,-507.0570203,0.00024931,6]
[345684245,1734424250909,-500.0,0.00024931,6]
[345684247,1734424250919,-2543.43,0.00024931,6]
[345684249,1734424250929,-500.0,0.00024931,6]
[345684251,1734424250939,-506.83154937,0.00024931,6]
[345684253,1734424250948,-507.15913958,0.00024931,6]
[345684255,1734424250958,-500.0,0.00024931,6]
[345684257,1734424250969,-530.48,0.00024931,6]
[345684260,1734424250978,-4978.04,0.00024931,6]
[345684262,1734424250989,-500.0,0.00024931,6]
[345684264,1734424250999,-500.0,0.00024931,6]
[345684266,1734424251009,-500.0,0.00024931,6]
[345684268,1734424251018,-500.0,0.00024931,6]
[345684269,1734424251028,-500.0,0.00024931,6]
[345684271,1734424251038,-500.0,0.00024931,6]
[345684273,1734424251048,-500.0,0.00024931,6]
[345684275,1734424251058,-500.0,0.00024931,6]
[345684278,1734424251068,-1782.0,0.00024931,6]
[345684280,1734424251079,-637.23,0.00024931,6]
[345684281,1734424251089,-500.0,0.00024931,6]
[345684283,1734424251099,-500.0,0.00024931,6]
[345684285,1734424251110,-1595.65,0.00024931,6]
[345684287,1734424251122,-500.0,0.00024931,6]
[345684289,1734424251132,-500.0,0.00024931,6]
[345684305,1734424251278,-500.0,0.00024931,6]
[345684307,1734424251288,-500.0,0.00024931,6]
[345684309,1734424251299,-780.44,0.00024931,6]
[345684311,1734424251308,-1801.85,0.00024931,6]
[345684313,1734424251317,-523.85526545,0.00024931,6]
[345684315,1734424251327,-1402.82,0.00024931,6]
[345684317,1734424251336,-510.48544884,0.00024931,6]
[345684319,1734424251346,-500.0,0.00024931,6]
[345684321,1734424251355,-505.01308766,0.00024931,6]
[345684323,1734424251363,-500.0,0.00024931,6]
[345684324,1734424251373,-542.8,0.00024931,6]
[345684326,1734424251382,-500.0,0.00024931,6]
[345684329,1734424251392,-500.0,0.00024931,6]
[345684330,1734424251401,-1166.17,0.00024931,6]
[345684332,1734424251410,-1240.63,0.00024931,6]
[345684334,1734424251420,-500.0,0.00024931,6]
[345684336,1734424251429,-1591.78,0.00024931,6]
[345684339,1734424251439,-500.0,0.00024931,6]
[345684340,1734424251448,-502.17208255,0.00024931,6]
[345684343,1734424251457,-500.0,0.00024931,6]
[345684345,1734424251467,-500.0,0.00024931,6]
[345684347,1734424251477,-500.0,0.00024931,6]
[345684349,1734424251486,-2184.89,0.00024931,6]
[345684351,1734424251495,-502.80772629,0.00024931,6]
[345684353,1734424251504,-500.0,0.00024931,6]
[345684355,1734424251514,-500.0,0.00024931,6]
[345684357,1734424251525,-500.0,0.00024931,6]
[345684359,1734424251533,-634.14709021,0.00024931,6]
[345684361,1734424251542,-500.0,0.00024931,6]
[345684363,1734424251551,-501.24662415,0.00024931,6]
[345684365,1734424251560,-887.08,0.00024931,6]
[345684367,1734424251569,-500.0,0.00024931,6]
[345684369,1734424251579,-500.0,0.00024931,6]
[345684371,1734424251589,-500.0,0.00024931,6]
[345684373,1734424251597,-500.0,0.00024931,6]
[345684375,1734424251607,-954.46,0.00024931,6]
[345684377,1734424251617,-500.0,0.00024931,6]
[345684379,1734424251626,-1261.96,0.00024931,6]
[345684381,1734424251635,-991.36,0.00024931,6]
[345684383,1734424251646,-2550.14,0.00024931,6]
[345684385,1734424251655,-152.677159,0.00024931,7]
[345684387,1734424251664,-152.677159,0.00024931,7]
[345684389,1734424251673,-152.677159,0.00024931,7]
[345684391,1734424251683,-247.33925949,0.00024931,6]
[345684393,1734424251693,-553.253454,0.00024931,7]
[345684395,1734424251702,-553.253454,0.00024931,7]
[345684397,1734424251711,-553.253454,0.00024931,7]
[345684399,1734424251719,-152.677159,0.00024931,7]
[345684401,1734424251728,-500.0,0.00024973,2]
[345684403,1734424251737,-501.16903016,0.00024973,2]
[345684405,1734424251746,-501.75147764,0.00024973,2]
[345684407,1734424251755,-501.17878232,0.00024973,2]
[345684409,1734424251764,-517.95278719,0.00024973,2]
[345684411,1734424251774,-501.07612299,0.00024973,2]
[345684412,1734424251783,-500.0,0.00024973,2]
[345684413,1734424251793,-500.0,0.00024973,2]
[345684414,1734424251802,-562.26853534,0.00024973,2]
[345684415,1734424251812,-32388.89688521,0.00025,2]
[345684416,1734424251822,-2500.0,0.00025,15]
[345684417,1734424251832,-217.94,0.00025,2]
[345684418,1734424251842,-554.12346027,0.00025,5]
[345684419,1734424251851,-3000.0,0.00025,2]
[345684420,1734424251861,-13252.8,0.00025,2]
[345684421,1734424251871,-6311.6125896,0.00025,45]
[345684422,1734424251881,-152.677159,0.00025,7]
[345684424,1734424251892,-553.253454,0.00025,7]
[345684426,1734424251905,-500.0,0.00025008,6]
[345684428,1734424251915,-3000.0,0.0002501,2]
[345684430,1734424251925,-3000.0,0.0002502,2]
[345684432,1734424251934,-3000.0,0.0002503,2]
[345684434,1734424251943,-3000.0,0.0002504,2]
[345684436,1734424251952,-3000.0,0.0002505,2]
[345684438,1734424251961,-3000.0,0.0002506,2]
[345684440,1734424251970,-3000.0,0.0002507,2]
[345684442,1734424251979,-3000.0,0.0002508,2]
[345684444,1734424251988,-3000.0,0.0002509,2]
[345684446,1734424251997,-3000.0,0.000251,2]
[345684448,1734424252006,-3000.0,0.0002511,2]
[345684450,1734424252016,-3000.0,0.0002512,2]
[345684452,1734424252025,-3000.0,0.0002513,2]
[345684454,1734424252034,-3000.0,0.0002514,2]
[345684456,1734424252043,-3000.0,0.0002515,2]
[345684458,1734424252053,-3000.0,0.0002516,2]
[345684460,1734424252062,-3000.0,0.0002517,2]
[345684462,1734424252071,-3000.0,0.0002518,2]
[345684464,1734424252080,-3000.0,0.0002519,2]
[345684466,1734424252090,-3790.95693877,0.00025197,2]
[345684468,1734424252099,-3000.0,0.000252,2]
[345684470,1734424252108,-32392.98116517,0.00025205,2]
[345684472,1734424252118,-3566.51966665,0.00025205,2]
[345684474,1734424252127,-500.0,0.00025205,6]
[345684476,1734424252136,-500.0,0.00025205,2]
[345684478,1734424252146,-500.0,0.00025205,6]
[345684480,1734424252155,-500.0,0.00025205,6]
[345684482,1734424252165,-198.36834602,0.00025205,6]
[345684484,1734424252174,-500.0,0.00025205,6]
[345684486,1734424252183,-500.0,0.00025205,6]
[345684488,1734424252194,-506.27792582,0.00025205,6]
[345684490,1734424252203,-500.0,0.00025205,6]
[345684492,1734424252213,-500.0,0.00025205,6]
[345684494,1734424252222,-515.41666157,0.00025205,6]
[345684496,1734424252231,-500.0,0.00025205,6]
[345684498,1734424252240,-642.52,0.00025205,6]
[345684500,1734424252254,-300.22615078,0.00025205,6]
[345684502,1734424252263,-510.93462772,0.00025205,6]
[345684504,1734424252273,-500.0,0.00025205,6]
[345684506,1734424252282,-500.0,0.00025205,6]
[345684508,1734424252294,-535.38,0.00025205,6]
[345684510,1734424252303,-505.69313627,0.00025205,6]
[345684512,1734424252311,-472.24060304,0.00025205,6]
[345684514,1734424252321,-500.0,0.00025205,6]
[345684516,1734424252330,-485.20527554,0.00025205,6]
[345684518,1734424252340,-500.0,0.00025205,6]
[345684520,1734424252349,-500.0,0.00025205,6]
[345684522,1734424252358,-500.0,0.00025205,6]
[345684524,1734424252368,-507.34325708,0.00025205,6]
[345684526,1734424252376,-640.27057263,0.00025205,6]
[345684528,1734424252386,-500.0,0.00025205,6]
[345684530,1734424252395,-500.0,0.00025205,6]
[345684532,1734424252404,-240.3490028,0.00025205,6]
[345684534,1734424252414,-516.5999289,0.00025205,6]
[345684536,1734424252423,-500.0,0.00025205,6]
[345684538,1734424252432,-500.0,0.00025205,6]
[345684540,1734424252441,-248.6047044,0.00025205,6]
[345684542,1734424252451,-200.0,0.00025205,6]
[345684544,1734424252459,-500.0,0.00025205,6]
[345684546,1734424252468,-561.51697178,0.00025205,6]
[345684548,1734424252478,-879.48,0.00025205,6]
[345684550,1734424252487,-500.0,0.00025205,6]
[345684552,1734424252497,-500.0,0.00025205,6]
[345684554,1734424252506,-500.0,0.00025205,6]
[345684556,1734424252515,-500.0,0.00025205,6]
[345684558,1734424252524,-312.94711633,0.00025205,6]
[345684560,1734424252534,-500.0,0.00025205,6]
[345684562,1734424252543,-500.0,0.00025205,6]
[345684564,1734424252552,-500.0,0.00025205,6]
[345684566,1734424252561,-500.0,0.00025205,6]
[345684568,1734424252570,-187.02153753,0.00025205,6]
[345684570,1734424252580,-500.0,0.00025205,6]
[345684572,1734424252589,-500.0,0.00025205,6]
[345684574,1734424252597,-500.0,0.00025205,6]
[345684576,1734424252607,-500.0,0.00025205,6]
[345684578,1734424252616,-500.0,0.00025205,6]
[345684580,1734424252625,-500.0,0.00025205,6]
[345684582,1734424252634,-500.0,0.00025205,6]
[345684584,1734424252643,-525.57419827,0.00025205,6]
[345684586,1734424252652,-500.0,0.00025205,6]
[345684588,1734424252661,-500.0,0.00025205,6]
[345684590,1734424252670,-500.0,0.00025205,6]
[345684592,1734424252679,-1214.35,0.00025205,6]